bitfinex-derivatives/quotes_SOLF0:USTF0_20241217
["timestamp","ask_amount","ask_price","bid_price","bid_amount"]
[1734462290778,2.2025,226.98,226.93,2.5]
[1734462292378,9.22208362,227.04,226.93,2.5]
[1734462293881,2.2024,226.99,226.93,2.5]
[1734462294083,2.2024,226.99,226.93,8.40855322]
[1734462296385,2.2024,226.99,226.93,2.5]
[1734462297383,2.2026,226.97,226.93,2.5]
[1734462297781,5.90855322,226.99,226.93,2.5]
[1734462297983,2.2028,226.94,226.91,2.5]
[1734462298178,5.90855322,226.95,226.89,3.40984]
[1734462298483,2.2032,226.9,226.89,0.37174]
[1734462300885,3.0317,226.97,226.88,5.90855322]
[1734462301090,5.90855322,227.0,226.93,5.90855322]
[1734462301285,2.5,227.03,226.91,2.5]
[1734462301481,5.90855322,226.99,226.92,5.90855322]
[1734462301788,5.90855322,226.99,226.91,2.5]
[1734462301983,5.90855322,226.99,226.91,8.40855322]
[1734462302183,5.90855322,226.99,226.93,5.90855322]
[1734462302583,8.11095322,226.99,226.93,5.90855322]
[1734462302787,5.90855322,227.01,226.93,5.90855322]
[1734462302985,5.90855322,226.99,226.93,5.90855322]
[1734462303392,2.2026,226.97,226.93,5.90855322]
[1734462303691,5.90855322,226.99,226.92,2.5]
[1734462303883,5.90855322,226.97,226.92,2.5]
[1734462305186,2.2026,226.97,226.92,2.5]
[1734462305382,2.5,227.05,226.93,5.90855322]
[1734462305591,5.90855322,227.01,226.93,5.90855322]
[1734462305793,2.2024,226.99,226.93,5.90855322]
[1734462306486,2.2025,226.98,226.93,5.90855322]
[1734462306682,5.90855322,227.01,226.93,5.90855322]
[1734462306887,2.2024,226.99,226.93,5.90855322]
[1734462307097,5.90855322,227.01,226.93,5.90855322]
[1734462307793,5.90855322,226.99,226.92,2.5]
[1734462308894,2.2026,226.97,226.92,2.5]
[1734462309796,2.2026,226.97,226.93,5.90855322]
[1734462309994,5.90855322,226.99,226.92,2.5]
[1734462310293,2.2027,226.96,226.92,2.5]
[1734462310594,5.90855322,226.99,226.92,2.5]
[1734462310785,2.2026,226.97,226.92,2.5]
[1734462311186,5.90855322,226.99,226.92,2.5]
[1734462311386,2.2027,226.96,226.92,2.5]
[1734462311787,2.203,226.93,226.88,595.02717874]
[1734462311995,5.90855322,226.97,226.9,8.40855322]
[1734462312195,5.90855322,226.99,226.92,5.90855322]
[1734462312498,2.2026,226.97,226.92,5.90855322]
[1734462312700,5.90855322,226.99,226.92,5.90855322]
[1734462313097,2.2026,226.97,226.92,5.90855322]
[1734462313696,2.2026,226.97,226.93,5.90855322]
[1734462314291,2.2027,226.96,226.9,2.2032]
[1734462314499,5.90855322,226.99,226.9,8.40855322]
[1734462315397,5.25807353,227.0,226.9,8.40855322]
[1734462315595,5.90855322,226.99,226.9,8.40855322]
[1734462315998,5.25807353,227.0,226.92,5.90855322]
[1734462315999,11.16662675,227.0,226.92,5.90855322]
[1734462316702,5.90855322,226.98,226.9,8.40855322]
[1734462316995,11.16662675,227.0,226.92,5.90855322]
[1734462317201,5.25807353,227.0,226.92,5.90855322]
[1734462317402,2.2027,226.96,226.92,5.90855322]
[1734462318805,2.2028,226.95,226.92,5.90855322]
[1734462320407,2.5,227.05,226.92,5.90855322]
[1734462320608,5.90855322,227.01,226.92,5.90855322]
[1734462320812,2.2026,226.97,226.92,5.90855322]
[1734462321710,2.2029,226.94,226.9,588.60117874]
[1734462321914,2.2029,226.94,226.9,185.02092594]
[1734462322109,2.2029,226.94,226.9,8.40855322]
[1734462322315,5.90855322,226.95,226.88,588.97477874]
[1734462322515,5.90855322,226.95,226.87,8.40855322]
[1734462323312,2.203,226.93,226.87,5.90855322]
[1734462323508,5.90855322,226.95,226.87,5.90855322]
[1734462324014,2.2032,226.91,226.87,5.90855322]
[1734462324611,2.2031,226.92,226.87,5.90855322]
[1734462325116,5.90855322,226.95,226.87,5.90855322]
[1734462325316,2.2032,226.91,226.87,5.90855322]
[1734462326019,2.2032,226.91,226.89,5.90855322]
[1734462326715,5.90855322,226.96,226.89,5.90855322]
[1734462326914,2.5,227.0,226.91,5.90855322]
[1734462327113,5.90855322,226.99,226.93,5.90855322]
[1734462327308,5.90855322,226.99,226.91,2.5]
[1734462327512,5.90855322,226.99,226.92,5.90855322]
[1734462328513,5.90855322,227.01,226.94,5.90855322]
[1734462329110,2.2024,226.99,226.94,5.90855322]
[1734462329817,2.5,227.04,226.91,4.7031]
[1734462330018,2.2024,226.99,226.93,5.90855322]
[1734462330916,2.2026,226.97,226.91,2.5]
[1734462331118,2.2026,226.97,226.92,5.90855322]
[1734462331818,2.2025,226.98,226.92,5.90855322]
[1734462333422,5.90855322,226.97,226.91,2.5]
[1734462334130,2.203,226.93,226.91,2.5]
[1734462334624,2.2028,226.95,226.91,8.40855322]
[1734462334821,5.90855322,226.99,226.92,4.60954721]
[1734462335026,5.90855322,226.99,226.93,4.60954721]
[1734462335326,2.2027,226.96,226.94,4.6093765]
[1734462335626,2.2027,226.96,226.91,8.40855322]
[1734462335926,2.2027,226.96,226.92,4.60943429]
[1734462336126,2.2027,226.96,226.93,4.60943429]
[1734462336424,2.2027,226.96,226.94,4.60943429]
[1734462336628,2.2027,226.96,226.91,8.40855322]
[1734462336823,2.2027,226.96,226.92,4.60952001]
[1734462337023,2.2027,226.96,226.93,4.60952001]
[1734462337225,2.2027,226.96,226.94,4.60952001]
[1734462337424,3.0317,227.06,226.95,5.90855322]
[1734462337627,5.90855322,227.02,226.96,4.60920056]
[1734462337831,5.90855322,227.02,226.97,4.60920056]
[1734462338019,2.2024,227.0,226.93,5.90855322]
[1734462338224,5.90855322,227.02,226.94,4.60915263]
[1734462338427,5.90855322,227.02,226.95,4.60915263]
[1734462338621,2.2023,227.0,226.93,5.90855322]
[1734462338931,11.26127975,227.03,226.95,5.90855322]
[1734462339129,3.0317,227.06,226.97,5.90855322]
[1734462339327,2.2021,227.02,226.98,7.10889698]
[1734462339528,2.2021,227.02,226.98,2.5]
[1734462339930,2.2021,227.02,226.99,4.60855468]
[1734462340130,2.2021,227.02,226.98,2.5]
[1734462340428,2.2021,227.02,226.99,4.60770148]
[1734462340626,5.18226066,227.04,226.98,2.5]
[1734462340826,5.18226066,227.04,226.99,7.80270115]
[1734462341029,13.21,227.22,226.98,2.5]
[1734462341223,2.2017,227.06,227.01,5.90855322]
[1734462341625,5.90855322,227.04,227.02,7.80122355]
[1734462341825,2.202,227.03,227.02,3.1937835]
[1734462342026,2.202,227.03,227.02,10.99410762]
[1734462342231,2.202,227.03,227.02,3.1937835]
[1734462343429,5.90855322,227.04,226.94,2.5]
[1734462343624,2.2027,226.95,226.94,2.5]
[1734462343824,5.90855322,226.95,226.94,4.60587148]
[1734462344032,5.90855322,226.95,226.88,2.5]
[1734462344033,2.203,226.93,226.88,2.5]
[1734462344232,5.90855322,226.95,226.89,4.60646936]
[1734462344427,5.90855322,226.95,226.88,2.5]
[1734462344630,5.90855322,226.95,226.89,4.60685931]
[1734462344833,5.90855322,226.95,226.88,2.5]
[1734462344834,5.90855322,226.95,226.9,4.60691576]
[1734462345137,2.2031,226.92,226.88,2.5]
[1734462345434,5.90855322,226.93,226.89,4.59269159]
[1734462345637,5.90855322,226.91,226.83,8.40855322]
[1734462345825,2.2034,226.89,226.84,4.59309099]
[1734462346031,2.2034,226.89,226.85,18.18538173]
[1734462346231,2.2034,226.89,226.86,12.27682851]
[1734462346430,2.2034,226.88,226.87,12.48440529]
[1734462346632,2.2034,226.88,226.87,4.80066777]
[1734462347137,2.2037,226.86,226.81,8.40855322]
[1734462347331,2.2037,226.86,226.82,12.47566125]
[1734462347631,2.5,226.88,226.83,12.47566125]
[1734462347826,8.11235322,226.84,226.77,236.67125183]
[1734462348030,5.90855322,226.82,226.77,236.67125183]
[1734462348333,5.90855322,226.82,226.76,5.90855322]
[1734462349436,2.2042,226.8,226.76,5.90855322]
[1734462349736,5.90855322,226.82,226.76,5.90855322]
[1734462349933,5.90855322,226.84,226.76,5.90855322]
[1734462350536,5.90855322,226.84,226.73,2.5]
[1734462350537,5.90855322,226.82,226.73,2.5]
[1734462350738,5.90855322,226.8,226.73,5.90855322]
[1734462351236,2.2043,226.79,226.73,5.90855322]
[1734462351631,5.90855322,226.8,226.73,5.90855322]
[1734462351934,8.11275322,226.8,226.73,5.90855322]
[1734462352731,2.2043,226.79,226.73,5.90855322]
[1734462352930,5.90855322,226.82,226.75,5.90855322]
[1734462353133,5.90855322,226.84,226.73,2.2049]
[1734462353329,5.90855322,226.84,226.74,2.5]
[1734462353536,5.90855322,226.84,226.77,5.90855322]
[1734462353930,2.2039,226.83,226.77,5.90855322]
[1734462354136,5.90855322,226.84,226.77,5.90855322]
[1734462354434,5.90855322,226.88,226.81,5.90855322]
[1734462355338,2.2034,226.89,226.83,5.90855322]
[1734462355633,5.24534415,226.91,226.85,5.90855322]
[1734462355833,7.44854415,226.91,226.85,5.90855322]
[1734462356041,11.73810895,226.96,226.84,2.5]
[1734462356436,2.203,226.92,226.84,5.5294]
[1734462357445,11.73810895,226.96,226.84,5.5294]
[1734462357934,2.2033,226.9,226.84,5.5294]
[1734462359039,2.2035,226.88,226.84,5.5294]
[1734462359239,9.23810895,226.93,226.84,3.0294]
[1734462359740,5.26098787,226.94,226.8,368.58024434]
[1734462359741,9.23810895,226.9,226.8,3.0883]
[1734462359938,5.26098787,226.94,226.78,236.67125183]
[1734462359939,9.23810895,226.87,226.81,4.65103531]
[1734462360137,2.2038,226.84,226.77,2.5]
[1734462360440,9.23810895,226.87,226.77,2.5]
[1734462361444,2.204,226.82,226.77,2.5]
[1734462361938,9.23810895,226.87,226.77,2.5]
[1734462362136,9.23810895,226.87,226.74,353.75383539]
[1734462362334,9.23810895,226.87,226.72,763.94339385]
[1734462362536,9.23810895,226.84,226.73,4.64934886]
[1734462362738,2.5,226.83,226.74,4.64934886]
[1734462363040,2.5,226.83,226.72,2.5]
[1734462363235,2.5,226.83,226.73,4.64923195]
[1734462363439,2.2044,226.78,226.72,2.5]
[1734462363638,2.5,226.83,226.73,4.64822498]
[1734462363944,2.5,226.83,226.74,4.64822498]
[1734462364244,2.5,226.83,226.75,4.64822498]
[1734462364433,2.2044,226.78,226.73,63.20930471]
[1734462364634,2.2044,226.78,226.74,4.64726789]
[1734462364837,2.2044,226.78,226.73,63.20930471]
[1734462365040,2.2044,226.78,226.74,4.64745354]
[1734462365240,2.2044,226.78,226.71,419.42766741]
[1734462365544,2.2049,226.73,226.69,8.8876]
[1734462365847,9.23810895,226.81,226.7,4.64688268]
[1734462366041,2.2049,226.73,226.7,4.64688268]
[1734462366342,2.2049,226.73,226.71,4.64688268]
[1734462366537,9.23810895,226.81,226.69,8.8876]
[1734462366733,9.23810895,226.78,226.69,8.8876]
[1734462366939,11.73810895,226.78,226.69,8.8876]
[1734462367537,11.73810895,226.78,226.69,5.9311]
[1734462367740,2.2049,226.73,226.66,11.73810895]
[1734462367940,11.73810895,226.78,226.66,11.73810895]
[1734462368143,11.73810895,226.78,226.63,413.07155846]
[1734462368348,9.23810895,226.78,226.65,9.23810895]
[1734462368646,2.5,226.81,226.68,9.23810895]
[1734462368843,7.40081152,226.78,226.69,8.2086]
[1734462369044,9.23810895,226.84,226.71,9.23810895]
[1734462369245,9.23810895,226.84,226.72,6.7829142]
[1734462369446,9.23810895,226.84,226.71,9.23810895]
[1734462369745,9.23810895,226.84,226.72,4.57792748]
[1734462369944,5.28530034,226.83,226.71,419.42766741]
[1734462370143,9.23810895,226.81,226.7,2.5]
[1734462370449,11.73810895,226.81,226.69,6.0033]
[1734462371950,11.73810895,226.81,226.69,3.0359]
[1734462372147,2.2051,226.71,226.66,2.5]
[1734462372546,2.2051,226.71,226.65,9.23810895]
[1734462373650,2.5,226.76,226.65,9.23810895]
[1734462373846,2.2053,226.7,226.64,2.5]
[1734462374055,9.23810895,226.75,226.63,185.49687272]
[1734462374253,9.23810895,226.75,226.63,11.3845]
[1734462375251,9.23810895,226.75,226.63,20.62260895]
[1734462375851,9.23810895,226.75,226.64,4.57030196]
[1734462376054,9.23810895,226.75,226.63,20.62260895]
[1734462376352,9.23810895,226.75,226.62,177.14146267]
[1734462376654,9.23810895,226.75,226.62,2.5]
[1734462377255,9.23810895,226.72,226.62,2.5]
[1734462377458,11.73810895,226.72,226.6,8.9057]
[1734462377657,2.2055,226.68,226.6,18.14380895]
[1734462377855,2.5,226.71,226.6,18.14380895]
[1734462378057,2.5,226.71,226.61,4.56923056]
[1734462378362,2.5,226.71,226.6,18.14380895]
[1734462378548,2.5,226.71,226.6,8.9057]
[1734462378754,2.2055,226.68,226.6,8.9057]
[1734462379550,2.5,226.71,226.6,8.9057]
[1734462379862,2.5,226.71,226.6,11.1118]
[1734462380352,9.23810895,226.75,226.62,2.2059]
[1734462380558,11.73810895,226.75,226.61,9.23810895]
[1734462380759,2.2052,226.7,226.61,11.44410895]
[1734462381058,2.2052,226.7,226.61,9.23810895]
[1734462381254,2.2052,226.71,226.62,2.2059]
[1734462381456,5.29689165,226.72,226.61,9.23810895]
[1734462381961,2.205,226.73,226.65,2.2056]
[1734462382155,9.23810895,226.78,226.66,2.5]
[1734462382554,2.2047,226.75,226.67,2.2055]
[1734462382755,5.20100833,226.76,226.67,2.2055]
[1734462383055,9.23810895,226.78,226.67,2.2055]
[1734462383450,2.2048,226.74,226.67,2.2055]
[1734462383849,9.23810895,226.78,226.67,2.2055]
[1734462385556,5.30390183,226.77,226.66,1001.96929226]
[1734462385755,9.23810895,226.75,226.66,239.17125183]
[1734462386164,9.23810895,226.75,226.64,236.66387315]
[1734462386165,9.23810895,226.72,226.62,2.5]
[1734462387867,9.23810895,226.75,226.62,2.5]
[1734462388161,11.73810895,226.75,226.63,4.58128639]
[1734462388361,11.73810895,226.75,226.64,4.58128639]
[1734462388560,11.73810895,226.75,226.65,4.58128639]
[1734462388761,11.73810895,226.75,226.62,2.5]
[1734462388960,11.73810895,226.75,226.63,4.5852141]
[1734462389160,11.73810895,226.75,226.64,4.5852141]
[1734462389358,11.73810895,226.75,226.65,4.5852141]
[1734462389563,11.73810895,226.75,226.62,2.5]
[1734462389863,11.73810895,226.75,226.63,4.58681776]
[1734462390064,11.73810895,226.75,226.64,7.08681776]
[1734462390364,11.73810895,226.75,226.59,236.67125183]
[1734462390365,9.23810895,226.69,226.59,236.67125183]
[1734462390657,9.23810895,226.69,226.61,3.1111]
[1734462390864,9.23810895,226.69,226.62,4.58862239]
[1734462391061,9.23810895,226.69,226.63,4.58862239]
[1734462391260,9.23810895,226.69,226.61,3.1111]
[1734462391261,2.2053,226.69,226.64,4.58862239]
[1734462391564,2.2053,226.69,226.61,3.1111]
[1734462391765,2.2053,226.69,226.62,4.58917364]
[1734462392061,2.2053,226.69,226.63,4.58917364]
[1734462392264,2.2053,226.69,226.64,4.58917364]
[1734462392465,2.2054,226.68,226.61,3.1111]
[1734462392656,9.23810895,226.69,226.62,4.58945656]
[1734462392854,9.23810895,226.69,226.63,4.58945656]
[1734462393063,9.23810895,226.69,226.61,3.1111]
[1734462393362,9.23810895,226.66,226.62,4.58962012]
[1734462393561,9.23810895,226.63,226.55,5.9429]
[1734462393760,2.2062,226.6,226.56,4.59009679]
[1734462393963,9.23810895,226.63,226.57,4.59009679]
[1734462394257,2.2063,226.59,226.55,5.9429]
[1734462394863,2.2064,226.58,226.55,5.9429]
[1734462395260,9.23810895,226.63,226.55,3.0651]
[1734462395466,2.2061,226.61,226.55,3.0651]
[1734462395664,9.23810895,226.69,226.55,3.0651]
[1734462395865,9.23810895,226.69,226.56,19.24230518]
[1734462396064,2.5,226.7,226.57,4.5860247]
[1734462396267,11.73810895,226.7,226.57,2.5]
[1734462396466,9.23810895,226.67,226.57,2.5]
[1734462396661,2.2061,226.61,226.57,2.5]
[1734462397460,9.23810895,226.67,226.57,2.5]
[1734462398365,2.2057,226.65,226.58,4.58333081]
[1734462398666,2.2057,226.65,226.57,2.5]
[1734462398867,2.2057,226.65,226.58,4.58322493]
[1734462399069,2.2057,226.65,226.57,2.5]
[1734462399267,11.73810895,226.7,226.57,2.5]
[1734462399463,11.73810895,226.7,226.58,4.5833657]
[1734462399667,11.73810895,226.7,226.57,2.5]
[1734462399863,2.2059,226.63,226.58,4.58341542]
[1734462400164,11.73810895,226.7,226.57,2.5]
[1734462400469,2.206,226.62,226.57,2.5]
[1734462400665,2.206,226.62,226.58,12.38591797]
[1734462400868,2.206,226.62,226.59,12.38591797]
[1734462401060,2.206,226.62,226.6,4.7638146]
[1734462401264,2.206,226.62,226.61,4.7664464]
[1734462401463,2.206,226.62,226.61,12.39251375]
[1734462401667,9.23810895,226.73,226.61,12.39251375]
[1734462401964,9.23810895,226.76,226.62,24.1306227]
[1734462402165,9.23810895,226.76,226.63,15.31001375]
[1734462402365,9.23810895,226.76,226.64,14.59831375]
[1734462402567,9.23810895,226.73,226.63,2.9175]
[1734462402768,9.23810895,226.76,226.65,12.39872681]
[1734462403077,5.30390183,226.77,226.66,12.39872681]
[1734462403362,5.30390183,226.77,226.67,15.33992681]
[1734462403564,5.30390183,226.77,226.68,14.89872681]
[1734462403764,5.30390183,226.77,226.69,4.76874108]
[1734462404069,2.2047,226.75,226.7,12.40418885]
[1734462404270,5.30390183,226.77,226.71,4.76874108]
[1734462404465,5.30390183,226.77,226.72,4.76874108]
[1734462404668,2.2048,226.75,226.67,2.9412]
[1734462404867,5.30390183,226.77,226.68,14.91824084]
[1734462405063,5.30390183,226.77,226.69,12.41824084]
[1734462405366,2.2047,226.75,226.7,12.41824084]
[1734462405572,5.30390183,226.77,226.71,4.77624648]
[1734462405772,5.30390183,226.77,226.72,4.77624648]
[1734462405964,5.30390183,226.77,226.73,4.77624648]
[1734462406168,5.30390183,226.77,226.74,4.77624648]
[1734462406474,2.2048,226.75,226.68,2.5]
[1734462406666,5.30390183,226.77,226.69,12.42257133]
[1734462406870,5.30390183,226.77,226.7,12.42257133]
[1734462407070,5.30390183,226.77,226.71,12.42257133]
[1734462407272,5.30390183,226.77,226.72,12.42257133]
[1734462407467,5.30390183,226.77,226.73,4.77791205]
[1734462407673,9.23810895,226.76,226.74,4.77791205]
[1734462407973,9.23810895,226.76,226.67,2.9412]
[1734462408178,2.2054,226.68,226.67,2.9412]
[1734462408372,2.2054,226.68,226.67,15.37278228]
[1734462408575,2.2054,226.68,226.67,2.9412]
[1734462408773,9.23810895,226.76,226.67,2.9412]
[1734462408774,2.2053,226.69,226.67,2.9412]
[1734462408976,9.23810895,226.76,226.67,2.9412]
[1734462409477,2.2052,226.7,226.67,2.9412]
[1734462409980,2.2053,226.69,226.67,2.9412]
[1734462410374,9.23810895,226.76,226.67,2.9412]
[1734462410679,2.2053,226.69,226.67,2.9412]
[1734462411875,9.23810895,226.76,226.67,2.9412]
[1734462412181,9.23810895,226.79,226.68,4.78564926]
[1734462412475,9.23810895,226.79,226.69,4.78564926]
[1734462412679,9.23810895,226.79,226.7,7.28564926]
[1734462412983,9.23810895,226.79,226.7,2.5]
[1734462413179,5.21984088,226.78,226.71,4.78523667]
[1734462413379,2.2048,226.74,226.7,2.5]
[1734462413582,5.21984088,226.78,226.7,2.5]
[1734462414584,2.2051,226.72,226.7,2.5]
[1734462414985,5.21984088,226.78,226.7,2.5]
[1734462415284,2.2051,226.71,226.7,2.5]
[1734462415485,2.2051,226.71,226.7,7.28782084]
[1734462415680,2.2051,226.71,226.7,7.28768985]
[1734462415877,2.2051,226.71,226.7,2.5]
[1734462416787,2.205,226.73,226.7,2.5]
[1734462416985,5.21984088,226.78,226.7,7.28837569]
[1734462417184,5.21984088,226.78,226.71,4.78837569]
[1734462417380,2.2046,226.77,226.72,4.7883214]
[1734462417587,5.21984088,226.78,226.73,4.7880606]
[1734462417788,5.21984088,226.78,226.7,2.5]
[1734462417981,5.21984088,226.78,226.71,5.89153032]
[1734462418185,5.21984088,226.78,226.72,4.78811132]
[1734462418387,5.21984088,226.78,226.7,2.5]
[1734462418585,5.21984088,226.78,226.71,5.89132797]
[1734462418783,2.2049,226.73,226.72,4.78790955]
[1734462419284,2.2049,226.73,226.7,2.5]
[1734462419586,2.2049,226.73,226.71,4.73791745]
[1734462419785,2.2049,226.73,226.72,4.73791745]
[1734462420082,2.2049,226.73,226.72,4.73771683]
[1734462420489,2.2049,226.73,226.72,4.73755182]
[1734462423288,5.21984088,226.78,226.67,2.9412]
[1734462423488,5.21984088,226.78,226.68,12.31584927]
[1734462423785,5.21984088,226.78,226.67,2.9412]
[1734462423985,2.2047,226.75,226.68,4.73674977]
[1734462424192,5.21984088,226.78,226.69,4.73674977]
[1734462424391,4.4066,226.9,226.73,9.23810895]
[1734462424593,9.23810895,226.9,226.76,9.23810895]
[1734462424796,9.23810895,226.9,226.77,5.4803]
[1734462424989,5.31584828,226.86,226.78,4.73543635]
[1734462425190,7.51944828,226.86,226.79,4.73543635]
[1734462425390,7.51944828,226.86,226.8,4.73543635]
[1734462425595,3.1011,226.92,226.78,2.2043]
[1734462425893,5.41647707,226.88,226.74,176.61237272]
[1734462426092,9.23810895,226.78,226.66,356.73413539]
[1734462426292,9.23810895,226.78,226.67,7.57288203]
[1734462426494,9.23810895,226.78,226.66,2.9803]
[1734462426695,9.23810895,226.78,226.65,236.67125183]
[1734462426890,9.23810895,226.75,226.65,236.67125183]
[1734462427093,9.23810895,226.75,226.66,2.5]
[1734462427392,11.73810895,226.81,226.66,11.73810895]
[1734462428198,2.2048,226.74,226.66,11.73810895]
[1734462429690,2.2048,226.74,226.66,420.78231399]
[1734462429991,2.2048,226.74,226.66,548.68224836]
[1734462430197,2.2048,226.74,226.66,188.35048167]
[1734462430395,2.2048,226.74,226.66,11.73810895]
[1734462430788,2.2048,226.74,226.66,420.78231399]
[1734462431101,2.2048,226.74,226.66,597.39468671]
[1734462431292,2.2048,226.74,226.66,188.35048167]
[1734462431597,9.23810895,226.81,226.66,9.23810895]
[1734462431793,9.23810895,226.81,226.67,2.5]
[1734462431994,9.23810895,226.84,226.69,9.23810895]
[1734462432194,9.23810895,226.81,226.68,2.9373]
[1734462432392,9.23810895,226.81,226.7,2.5]
[1734462432895,2.205,226.72,226.7,2.5]
[1734462433494,2.2051,226.71,226.7,2.5]
[1734462433697,9.23810895,226.81,226.7,2.5]
[1734462433901,2.2047,226.76,226.7,2.5]
[1734462434101,2.2047,226.76,226.71,3.1119]
[1734462434401,9.23810895,226.87,226.72,9.23810895]
[1734462434591,5.41647707,226.88,226.75,9.23810895]
[1734462434795,5.41647707,226.88,226.76,2.5]
[1734462435295,30.28444659,227.02,226.78,9.23810895]
[1734462435494,9.23810895,227.0,226.84,9.23810895]
[1734462435699,9.23810895,227.0,226.85,8.5114]
[1734462436093,2.203,226.93,226.85,8.5114]
[1734462436294,9.23810895,227.0,226.85,8.5114]
[1734462437100,9.23810895,227.0,226.86,3.0791]
[1734462437804,5.35661007,226.95,226.87,4.66995243]
[1734462438007,5.35661007,226.95,226.88,4.66995243]
[1734462438302,5.35661007,226.95,226.86,3.0791]
[1734462438603,5.35661007,226.95,226.87,4.66614009]
[1734462438797,5.35661007,226.95,226.88,2.5]
[1734462439599,2.2032,226.91,226.85,2.8995]
[1734462439797,5.35661007,226.95,226.84,2.5]
[1734462440300,2.2035,226.87,226.84,2.5]
[1734462441102,5.35661007,226.95,226.84,2.5]
[1734462441305,14.77632502,226.93,226.79,5.8896]
[1734462441599,2.2036,226.86,226.79,5.8896]
[1734462441804,5.35661007,226.95,226.8,2.5]
[1734462442204,5.35661007,226.95,226.81,3.114]
[1734462442812,5.35661007,226.95,226.82,4.66480879]
[1734462443110,2.2032,226.9,226.81,3.114]
[1734462443307,14.77632502,227.01,226.83,14.77632502]
[1734462443607,2.5,227.04,226.84,397.81933385]
[1734462443805,2.2024,226.99,226.87,2.2035]
[1734462444105,14.77632502,227.05,226.88,2.5]
[1734462444407,14.77632502,227.09,226.91,14.77632502]
[1734462444807,14.77632502,227.09,226.92,3.114]
[1734462445010,14.77632502,227.09,226.93,2.5]
[1734462446409,2.2022,227.01,226.93,2.5]
[1734462447411,2.202,227.03,226.93,4.7029]
[1734462447606,4.4016,227.16,226.93,2.5]
[1734462447809,2.5,227.17,226.94,436.25831006]
[1734462448010,2.5,227.17,226.94,526.12030914]
[1734462448209,2.5,227.17,226.94,65.24377913]
[1734462448210,2.2019,227.04,226.94,65.24377913]
[1734462448510,2.5,227.17,226.94,63.04097913]
[1734462448705,2.5,227.17,226.93,146.81392341]
[1734462448706,14.77632502,227.05,226.93,146.81392341]
[1734462448906,19.99690517,227.05,226.89,177.08614258]
[1734462449105,14.77632502,227.01,226.89,5.916]
[1734462449303,14.77632502,226.97,226.87,2.5]
[1734462449511,14.77632502,226.97,226.82,73.06865753]
[1734462449716,14.77632502,226.93,226.81,146.81392341]
[1734462450014,14.77632502,226.93,226.8,152.73612341]
[1734462450210,14.77632502,226.93,226.8,8.4222]
[1734462450415,2.5,226.92,226.8,5.4396]
[1734462450711,2.5,226.92,226.8,2.5]
[1734462450909,2.2041,226.82,226.8,2.5]
[1734462451115,2.5,226.92,226.8,2.5]
[1734462452210,14.77632502,226.89,226.73,6.0155]
[1734462452416,14.77632502,226.89,226.74,2.5]
[1734462453209,14.77632502,226.85,226.74,2.5]
[1734462453514,17.27632502,226.85,226.74,2.5]
[1734462454317,17.27632502,226.85,226.73,6.0155]
[1734462454318,17.27632502,226.85,226.73,2.5]
[1734462455420,2.2044,226.78,226.73,2.5]
[1734462455616,2.5,226.85,226.73,2.5]
[1734462455818,17.27632502,226.85,226.68,5.813]
[1734462456118,14.77632502,226.89,226.7,14.77632502]
[1734462456316,2.5,226.89,226.74,14.77632502]
[1734462456517,2.5,226.89,226.75,2.5]
[1734462457518,2.2039,226.83,226.75,2.5]
[1734462457820,2.2039,226.83,226.76,4.6571998]
[1734462458022,2.2036,226.87,226.75,2.5]
[1734462458322,2.5,226.9,226.75,2.5]
[1734462459514,2.204,226.83,226.75,2.5]
[1734462459718,2.204,226.83,226.76,4.65815749]
[1734462460023,2.204,226.83,226.75,2.5]
[1734462460419,2.5,226.9,226.75,2.5]
[1734462460625,2.204,226.82,226.75,2.5]
[1734462461023,2.2043,226.79,226.74,2.9333]
[1734462461326,14.77632502,226.89,226.75,2.5]
[1734462461623,2.204,226.83,226.75,2.5]
[1734462461819,17.27632502,226.89,226.76,4.65922125]
[1734462462027,17.27632502,226.89,226.75,2.5]
[1734462462227,2.2039,226.84,226.76,4.65938187]
[1734462462425,2.5,226.89,226.75,2.5]
[1734462462628,5.42110639,226.91,226.76,4.6601718]
[1734462462826,5.42110639,226.91,226.77,4.6601718]
[1734462463021,5.42110639,226.91,226.78,4.6601718]